{"text_format":"1","workbook":"xlsx","n_sheets":1,"sheets":["Plan1"],"not_rendered":{"charts":0,"images":0,"macros":1,"external_links":0,"defined_names":0,"comments":0,"pivot_tables":0},"unopened":[],"bounds":{"document_bytes":16777216,"sheet_cells":100000,"rows_first":2000,"rows_last":500,"rows_between":2000,"halvings":0,"cell_chars":16384,"cell_head_chars":4096},"cells_cut":0,"cells_raw":0,"read":"whole","date_system":"1900"}

{"sheet":"Plan1","index":0,"n_rows":67,"n_cols":3,"rows_kept":67,"cut":false,"hidden":false,"merged":[]}
[]
[null,"Valor","Valor por Extenso\nFórmula: VALOREXTENSO(VALOR)\nmódulo VBA: m_ValorPorExtenso"]
[null,-9999999999999,{"$f":"VALOREXTENSO(Tabela1[[#This Row],[Valor]])","v":"(-) menos nove trilhões, novecentos e noventa e nove bilhões, novecentos e noventa e nove milhões, novecentos e noventa e nove mil, novecentos e noventa e nove reais"}]
[null,-500000,{"$f":"VALOREXTENSO(Tabela1[[#This Row],[Valor]])","v":"(-) menos quinhentos mil reais"}]
[null,-1000,{"$f":"VALOREXTENSO(Tabela1[[#This Row],[Valor]])","v":"(-) menos um mil reais"}]
[null,-500,{"$f":"VALOREXTENSO(Tabela1[[#This Row],[Valor]])","v":"(-) menos quinhentos reais"}]
[null,-200,{"$f":"VALOREXTENSO(Tabela1[[#This Row],[Valor]])","v":"(-) menos duzentos reais"}]
[null,-100,{"$f":"VALOREXTENSO(Tabela1[[#This Row],[Valor]])","v":"(-) menos cem reais"}]
[null,0,{"$f":"VALOREXTENSO(Tabela1[[#This Row],[Valor]])","v":""}]
[null,100,{"$f":"VALOREXTENSO(Tabela1[[#This Row],[Valor]])","v":"cem reais"}]
[null,200,{"$f":"VALOREXTENSO(Tabela1[[#This Row],[Valor]])","v":"duzentos reais"}]
[null,300,{"$f":"VALOREXTENSO(Tabela1[[#This Row],[Valor]])","v":"trezentos reais"}]
[null,400,{"$f":"VALOREXTENSO(Tabela1[[#This Row],[Valor]])","v":"quatrocentos reais"}]
[null,500,{"$f":"VALOREXTENSO(Tabela1[[#This Row],[Valor]])","v":"quinhentos reais"}]
[null,600,{"$f":"VALOREXTENSO(Tabela1[[#This Row],[Valor]])","v":"seiscentos reais"}]
[null,700,{"$f":"VALOREXTENSO(Tabela1[[#This Row],[Valor]])","v":"setecentos reais"}]
[null,800,{"$f":"VALOREXTENSO(Tabela1[[#This Row],[Valor]])","v":"oitocentos reais"}]
[null,900,{"$f":"VALOREXTENSO(Tabela1[[#This Row],[Valor]])","v":"novecentos reais"}]
[null,1000,{"$f":"VALOREXTENSO(Tabela1[[#This Row],[Valor]])","v":"um mil reais"}]
[null,2000,{"$f":"VALOREXTENSO(Tabela1[[#This Row],[Valor]])","v":"dois mil reais"}]
[null,3000,{"$f":"VALOREXTENSO(Tabela1[[#This Row],[Valor]])","v":"três mil reais"}]
[null,4000,{"$f":"VALOREXTENSO(Tabela1[[#This Row],[Valor]])","v":"quatro mil reais"}]
[null,5000,{"$f":"VALOREXTENSO(Tabela1[[#This Row],[Valor]])","v":"cinco mil reais"}]
[null,6000,{"$f":"VALOREXTENSO(Tabela1[[#This Row],[Valor]])","v":"seis mil reais"}]
[null,7000,{"$f":"VALOREXTENSO(Tabela1[[#This Row],[Valor]])","v":"sete mil reais"}]
[null,8000,{"$f":"VALOREXTENSO(Tabela1[[#This Row],[Valor]])","v":"oito mil reais"}]
[null,9000,{"$f":"VALOREXTENSO(Tabela1[[#This Row],[Valor]])","v":"nove mil reais"}]
[null,10000,{"$f":"VALOREXTENSO(Tabela1[[#This Row],[Valor]])","v":"dez mil reais"}]
[null,20000,{"$f":"VALOREXTENSO(Tabela1[[#This Row],[Valor]])","v":"vinte mil reais"}]
[null,30000,{"$f":"VALOREXTENSO(Tabela1[[#This Row],[Valor]])","v":"trinta mil reais"}]
[null,40000,{"$f":"VALOREXTENSO(Tabela1[[#This Row],[Valor]])","v":"quarenta mil reais"}]
[null,50000,{"$f":"VALOREXTENSO(Tabela1[[#This Row],[Valor]])","v":"cinquenta mil reais"}]
[null,60000,{"$f":"VALOREXTENSO(Tabela1[[#This Row],[Valor]])","v":"sessenta mil reais"}]
[null,70000,{"$f":"VALOREXTENSO(Tabela1[[#This Row],[Valor]])","v":"setenta mil reais"}]
[null,80000,{"$f":"VALOREXTENSO(Tabela1[[#This Row],[Valor]])","v":"oitenta mil reais"}]
[null,90000,{"$f":"VALOREXTENSO(Tabela1[[#This Row],[Valor]])","v":"noventa mil reais"}]
[null,100000,{"$f":"VALOREXTENSO(Tabela1[[#This Row],[Valor]])","v":"cem mil reais"}]
[null,200000,{"$f":"VALOREXTENSO(Tabela1[[#This Row],[Valor]])","v":"duzentos mil reais"}]
[null,300000,{"$f":"VALOREXTENSO(Tabela1[[#This Row],[Valor]])","v":"trezentos mil reais"}]
[null,400000,{"$f":"VALOREXTENSO(Tabela1[[#This Row],[Valor]])","v":"quatrocentos mil reais"}]
[null,500000,{"$f":"VALOREXTENSO(Tabela1[[#This Row],[Valor]])","v":"quinhentos mil reais"}]
[null,600000,{"$f":"VALOREXTENSO(Tabela1[[#This Row],[Valor]])","v":"seiscentos mil reais"}]
[null,700000,{"$f":"VALOREXTENSO(Tabela1[[#This Row],[Valor]])","v":"setecentos mil reais"}]
[null,800000,{"$f":"VALOREXTENSO(Tabela1[[#This Row],[Valor]])","v":"oitocentos mil reais"}]
[null,900000,{"$f":"VALOREXTENSO(Tabela1[[#This Row],[Valor]])","v":"novecentos mil reais"}]
[null,1000000,{"$f":"VALOREXTENSO(Tabela1[[#This Row],[Valor]])","v":"um milhão de reais"}]
[null,2000000,{"$f":"VALOREXTENSO(Tabela1[[#This Row],[Valor]])","v":"dois milhões de reais"}]
[null,3000000,{"$f":"VALOREXTENSO(Tabela1[[#This Row],[Valor]])","v":"três milhões de reais"}]
[null,4000000,{"$f":"VALOREXTENSO(Tabela1[[#This Row],[Valor]])","v":"quatro milhões de reais"}]
[null,5000000,{"$f":"VALOREXTENSO(Tabela1[[#This Row],[Valor]])","v":"cinco milhões de reais"}]
[null,6000000,{"$f":"VALOREXTENSO(Tabela1[[#This Row],[Valor]])","v":"seis milhões de reais"}]
[null,7000000,{"$f":"VALOREXTENSO(Tabela1[[#This Row],[Valor]])","v":"sete milhões de reais"}]
[null,8000000,{"$f":"VALOREXTENSO(Tabela1[[#This Row],[Valor]])","v":"oito milhões de reais"}]
[null,9000000,{"$f":"VALOREXTENSO(Tabela1[[#This Row],[Valor]])","v":"nove milhões de reais"}]
[null,10000000,{"$f":"VALOREXTENSO(Tabela1[[#This Row],[Valor]])","v":"dez milhões de reais"}]
[null,20000000,{"$f":"VALOREXTENSO(Tabela1[[#This Row],[Valor]])","v":"vinte milhões de reais"}]
[null,30000000,{"$f":"VALOREXTENSO(Tabela1[[#This Row],[Valor]])","v":"trinta milhões de reais"}]
[null,40000000,{"$f":"VALOREXTENSO(Tabela1[[#This Row],[Valor]])","v":"quarenta milhões de reais"}]
[null,50000000,{"$f":"VALOREXTENSO(Tabela1[[#This Row],[Valor]])","v":"cinquenta milhões de reais"}]
[null,60000000,{"$f":"VALOREXTENSO(Tabela1[[#This Row],[Valor]])","v":"sessenta milhões de reais"}]
[null,70000000,{"$f":"VALOREXTENSO(Tabela1[[#This Row],[Valor]])","v":"setenta milhões de reais"}]
[null,80000000,{"$f":"VALOREXTENSO(Tabela1[[#This Row],[Valor]])","v":"oitenta milhões de reais"}]
[null,90000000,{"$f":"VALOREXTENSO(Tabela1[[#This Row],[Valor]])","v":"noventa milhões de reais"}]
[null,100000000,{"$f":"VALOREXTENSO(Tabela1[[#This Row],[Valor]])","v":"cem milhões de reais"}]
[null,999999999999,{"$f":"VALOREXTENSO(Tabela1[[#This Row],[Valor]])","v":"novecentos e noventa e nove bilhões, novecentos e noventa e nove milhões, novecentos e noventa e nove mil, novecentos e noventa e nove reais"}]
[null,999999999999999,{"$f":"VALOREXTENSO(Tabela1[[#This Row],[Valor]])","v":"novecentos e noventa e nove trilhões, novecentos e noventa e nove bilhões, novecentos e noventa e nove milhões, novecentos e noventa e nove mil, novecentos e noventa e nove reais"}]
[null,9999999999999990,{"$f":"VALOREXTENSO(Tabela1[[#This Row],[Valor]])","v":"[erro] Valor excede 999.999.999.999.999"}]